fUST/lending_fUST_20250223
["ID","MTS","AMOUNT","RATE_DAILY","PERIOD"]
[354111374,1740250243150,-3413.0057,0.00015589,2]
[354111375,1740250243159,-1090.63,0.00015589,2]
[354111376,1740250243168,-1964.39654019,0.00015589,2]
[354111377,1740250243177,-520.34,0.00015589,2]
[354111378,1740250243187,-150.0,0.00016013,2]
[354111379,1740250243196,-538.0,0.00016013,2]
[354111380,1740250243205,-1970.0,0.00016013,2]
[354111381,1740250243215,-2287.0,0.00016013,2]
[354111382,1740250243224,-396.0,0.00016013,2]
[354111383,1740250243234,-499.0,0.00016164,2]
[354111384,1740250243243,-475.84545126,0.0001617,2]
[354111385,1740250243253,-13278.19900895,0.00016251,2]
[354111386,1740250243262,-179.17017516,0.000163,2]
[354111387,1740250243271,-179.17017513,0.00016333,2]
[354111388,1740250243281,-179.17017513,0.00016367,2]
[354111389,1740250243290,-500.0,0.00016399,2]
[354111390,1740250243299,-566.54992933,0.00016399,2]
[354111391,1740250243308,-3000.0,0.000164,2]
[354111392,1740250243317,-14185.0,0.000164,2]
[354111393,1740250243326,-179.17017513,0.000164,2]
[354111394,1740250243338,-1266.50320417,0.000164,2]
[354111395,1740250243348,-2000.0,0.000164,6]
[354111396,1740250243357,-236.85589448,0.00016473,2]
[354111397,1740250243366,-500.0,0.00016473,2]
[354111398,1740250243376,-500.0,0.00016473,2]
[354111399,1740250243386,-500.0,0.00016473,2]
[354111400,1740250243395,-344.42508021,0.00016473,2]
[354111401,1740250243405,-500.0,0.00016473,2]
[354111402,1740250243415,-500.0,0.00016473,2]
[354111403,1740250243425,-475.84545126,0.0001648,2]
[354111404,1740250243435,-951.69090252,0.0001649,2]
[354111405,1740250243445,-6661.83631764,0.0001649,2]
[354111406,1740250243454,-308.2662799,0.00016493,2]
[354111407,1740250243479,-557.2941539,0.00016493,2]
[354111408,1740250243489,-557.2941539,0.00016493,2]
[354111409,1740250243498,-557.2941539,0.00016493,2]
[354111410,1740250243507,-355.293833,0.00016493,2]
[354111411,1740250243517,-154.796407,0.00016493,2]
[354111412,1740250243526,-306.0,0.00016493,2]
[354111413,1740250243535,-154.796407,0.00016493,2]
[354111414,1740250243545,-557.2941539,0.00016493,2]
[354111415,1740250243554,-154.796407,0.00016493,2]
[354111416,1740250243564,-154.796407,0.00016493,2]
[354111417,1740250243574,-154.796407,0.00016493,2]
[354111418,1740250243583,-557.2941539,0.00016493,2]
[354111419,1740250243592,-309.592814,0.00016493,2]
[354111420,1740250243601,-557.2941539,0.00016493,2]
[354111421,1740250243610,-557.2941539,0.00016493,2]
[354111422,1740250243619,-47487.63379538,0.000165,5]
[354111423,1740250243629,-8295.42840069,0.000165,5]
[354111424,1740250243638,-227831.07530662,0.000165,8]
[354111425,1740250243770,-500.0,0.00013698,2]
[354111426,1740250243780,-500.0,0.0001378,2]
[354111427,1740250243789,-500.0,0.00013863,2]
[354111428,1740250243798,-500.0,0.00013945,2]
[354111429,1740250243808,-500.0,0.00014027,2]
[354111430,1740250243817,-500.0,0.00014109,2]
[354111431,1740250243826,-500.0,0.00014191,2]
[354111432,1740250243836,-45818.20775,0.000165,8]
[354111433,1740250243854,-1830.099999,0.000165,8]
[354111434,1740250243866,-1907.92801108,0.000165,8]
[354111436,1740250245999,-500.0,0.00013698,2]
[354111437,1740250246009,-722.874998,0.000165,8]
[354111438,1740250246055,-18777.6,0.000165,8]
[354111439,1740250329886,250.715866,9.041e-05,2]
[354111454,1740250882437,502.3408821,0.000164,120]
[354111491,1740251207240,-300.0,0.00012442,2]
[354111492,1740251207263,-61.98159961,0.00012443,2]
[354111524,1740251432112,-300.0,0.00012442,2]
[354111525,1740251432123,-438.01840039,0.00012443,2]
[354111527,1740251432132,-500.0,0.00012443,2]
[354111529,1740251432141,-350.19523869,0.00012443,2]
[354111532,1740251432151,-195.54441157,0.00012443,2]
[354111534,1740251432160,-500.0,0.00012443,2]
[354111536,1740251432169,-500.0,0.00012443,2]
[354111538,1740251432178,-500.0,0.00012443,2]
[354111540,1740251432187,-500.0,0.00012443,2]
[354111542,1740251432197,-500.0,0.00012443,2]
[354111543,1740251432206,-3092.46779884,0.00012444,3]
[354111544,1740251432217,-4994.39984807,0.00012444,3]
[354111545,1740251432278,-175050.53831747,0.00012444,3]
[354111640,1740251440366,-63057.35007492,0.00012444,3]
[354111641,1740251440380,-3422.60309389,0.00012444,3]
[354111642,1740251440390,-573.34456044,0.00012885,2]
[354111643,1740251440400,-24900.0,0.00012985,2]
[354111644,1740251440410,-204.0,0.000133,2]
[354111645,1740251440420,-204.0,0.000133,2]
[354111646,1740251440429,-573.34456044,0.00013331,2]
[354111647,1740251440439,-500.0,0.00013697,2]
[354111648,1740251440448,-566.54992933,0.00013697,2]
[354111649,1740251440457,-500.0,0.00013698,2]
[354111650,1740251440467,-500.0,0.00013698,2]
[354111651,1740251440477,-501.30971949,0.00013698,2]
[354111652,1740251440486,-500.0,0.00013698,2]
[354111653,1740251440495,-500.0,0.00013698,2]
[354111654,1740251440505,-500.0,0.00013698,2]
[354111655,1740251440515,-500.0,0.00013698,2]
[354111656,1740251440524,-500.0,0.00013698,2]
[354111657,1740251440534,-500.0,0.00013698,2]
[354111658,1740251440543,-500.0,0.00013698,2]
[354111659,1740251440552,-500.0,0.00013698,2]
[354111660,1740251440563,-500.0,0.00013698,2]
[354111661,1740251440572,-500.0,0.00013698,2]
[354111662,1740251440581,-500.0,0.00013698,2]
[354111664,1740251440591,-500.0,0.00013698,2]
[354111665,1740251440600,-225.04,0.00013698,2]
[354111667,1740251440610,-500.0,0.00013698,2]
[354111668,1740251440619,-500.0,0.00013698,2]
[354111669,1740251440628,-500.0,0.00013698,2]
[354111670,1740251440637,-500.0,0.00013698,2]
[354111671,1740251440646,-287.08,0.00013698,2]
[354111672,1740251440655,-500.0,0.00013698,2]
[354111673,1740251440664,-353.05,0.00013698,2]
[354111674,1740251440674,-247.84,0.00013698,2]
[354111675,1740251440683,-500.0,0.00013698,2]
[354111676,1740251440693,-500.0,0.00013698,2]
[354111677,1740251440703,-503.27,0.00013698,2]
[354111678,1740251440715,-500.0,0.00013698,2]
[354111679,1740251440724,-500.0,0.00013698,2]
[354111680,1740251440734,-500.0,0.00013698,2]
[354111681,1740251440744,-500.0,0.00013698,2]
[354111682,1740251440757,-500.0,0.00013698,2]
[354111683,1740251440767,-500.0,0.00013698,2]
[354111684,1740251440776,-500.0,0.00013698,2]
[354111685,1740251440786,-500.0,0.00013698,2]
[354111686,1740251440795,-500.0,0.00013698,2]
[354111687,1740251440804,-500.0,0.00013698,2]
[354111688,1740251440814,-500.0,0.00013698,2]
[354111689,1740251440825,-500.0,0.00013698,2]
[354111690,1740251440834,-500.0,0.00013698,2]
[354111691,1740251440843,-518.62,0.00013698,2]
[354111692,1740251440852,-500.0,0.00013698,2]
[354111693,1740251440861,-500.0,0.00013698,2]
[354111694,1740251440871,-500.0,0.00013698,2]
[354111695,1740251440881,-573.79,0.00013698,2]
[354111696,1740251440890,-500.0,0.00013698,2]
[354111697,1740251440900,-500.0,0.00013698,2]
[354111698,1740251440909,-500.0,0.00013698,2]
[354111699,1740251440918,-500.0,0.00013698,2]
[354111700,1740251440928,-500.0,0.00013698,2]
[354111701,1740251440937,-500.0,0.00013698,2]
[354111702,1740251440947,-500.0,0.00013698,2]
[354111703,1740251440956,-500.0,0.00013698,2]
[354111704,1740251440965,-500.0,0.00013698,2]
[354111705,1740251440974,-500.0,0.00013698,2]
[354111706,1740251440983,-500.0,0.00013698,2]
[354111707,1740251440993,-500.0,0.00013698,2]
[354111708,1740251441003,-500.0,0.00013698,2]
[354111709,1740251441012,-858.89,0.00013698,2]
[354111710,1740251441022,-1566.2,0.00013698,2]
[354111711,1740251441031,-500.0,0.00013698,2]
[354111712,1740251441040,-556.94,0.00013698,2]
[354111713,1740251441049,-500.0,0.00013698,2]
[354111714,1740251441059,-500.0,0.00013698,2]
[354111715,1740251441068,-500.0,0.00013698,2]
[354111716,1740251441078,-500.0,0.00013698,2]
[354111717,1740251441087,-500.0,0.00013698,2]
[354111718,1740251441096,-500.0,0.00013698,2]
[354111719,1740251441106,-500.0,0.00013698,2]
[354111720,1740251441115,-500.0,0.00013698,2]
[354111721,1740251441126,-734.87,0.00013698,2]
[354111723,1740251441136,-602.28,0.00013698,2]
[354111724,1740251441145,-500.0,0.00013698,2]
[354111725,1740251441154,-197.27798357,0.00013698,2]
[354111726,1740251441163,-500.0,0.00013698,2]
[354111727,1740251441173,-500.0,0.00013698,2]
[354111728,1740251441182,-500.0,0.00013698,2]
[354111729,1740251441191,-500.0,0.00013698,2]
[354111730,1740251441200,-500.0,0.00013698,2]
[354111731,1740251441209,-500.0,0.00013698,2]
[354111732,1740251441218,-500.0,0.00013698,2]
[354111733,1740251441227,-500.0,0.00013698,2]
[354111734,1740251441237,-500.0,0.00013698,2]
[354111735,1740251441246,-500.0,0.00013698,2]
[354111736,1740251441255,-535.64,0.00013698,2]
[354111737,1740251441264,-500.0,0.00013698,2]
[354111738,1740251441273,-500.0,0.00013698,2]
[354111739,1740251441282,-500.0,0.00013698,2]
[354111740,1740251441291,-500.0,0.00013698,2]
[354111741,1740251441300,-500.0,0.00013698,2]
[354111742,1740251441310,-500.0,0.00013698,2]
[354111743,1740251441319,-500.0,0.00013698,2]
[354111744,1740251441328,-500.0,0.00013698,2]
[354111745,1740251441338,-748.64,0.00013698,2]
[354111746,1740251441347,-500.0,0.00013698,2]
[354111747,1740251441356,-500.0,0.00013698,2]
[354111748,1740251441366,-500.0,0.00013698,2]
[354111749,1740251441376,-500.0,0.00013698,2]
[354111750,1740251441385,-500.0,0.00013698,2]
[354111751,1740251441394,-500.0,0.00013698,2]
[354111752,1740251441403,-500.0,0.00013698,2]
[354111753,1740251441412,-500.0,0.00013698,2]
[354111754,1740251441423,-500.0,0.00013698,2]
[354111755,1740251441433,-3189.54,0.00013698,2]
[354111756,1740251441443,-1167.52,0.00013698,2]
[354111757,1740251441452,-9232.72,0.00013698,2]
[354111758,1740251441462,-500.0,0.00013698,2]
[354111759,1740251441471,-500.0,0.00013698,2]
[354111760,1740251441481,-500.0,0.00013698,2]
[354111761,1740251441490,-500.0,0.00013698,2]
[354111762,1740251441499,-500.0,0.00013698,2]
[354111763,1740251441508,-365.56,0.00013698,2]
[354111764,1740251441518,-1261.35,0.00013698,2]
[354111765,1740251441527,-500.0,0.00013698,2]
[354111766,1740251441536,-879.83,0.00013698,2]
[354111767,1740251441546,-789.71,0.00013698,2]
[354111769,1740251441664,-572.96751783,0.00013699,2]
[354111770,1740251441676,-573.34456044,0.00013776,2]
[354111771,1740251441685,-500.0,0.00013779,2]
[354111772,1740251441694,-500.0,0.00013779,2]
[354111773,1740251441704,-500.0,0.0001378,2]
[354111774,1740251441714,-500.0,0.0001378,2]
[354111775,1740251441724,-500.0,0.0001378,2]
[354111776,1740251441733,-243.2698351,0.0001378,2]
[354111777,1740251441744,-500.0,0.0001378,2]
[354111778,1740251441754,-500.0,0.0001378,2]
[354111779,1740251441763,-500.0,0.0001378,2]
[354111780,1740251441773,-500.0,0.0001378,2]
[354111781,1740251441783,-500.0,0.0001378,2]
[354111782,1740251441792,-293.8,0.0001378,2]
[354111783,1740251441801,-500.0,0.0001378,2]
[354111784,1740251441812,-500.0,0.0001378,2]
[354111785,1740251441822,-500.0,0.0001378,2]
[354111786,1740251441832,-500.0,0.0001378,2]
[354111787,1740251441841,-500.0,0.0001378,2]
[354111788,1740251441851,-500.0,0.0001378,2]
[354111789,1740251441859,-222.19,0.0001378,2]
[354111790,1740251441869,-858.89,0.0001378,2]
[354111791,1740251441879,-1566.2,0.0001378,2]
[354111792,1740251441888,-500.0,0.0001378,2]
[354111793,1740251441897,-500.0,0.0001378,2]
[354111794,1740251441907,-500.0,0.0001378,2]
[354111795,1740251441917,-500.0,0.0001378,2]
[354111796,1740251441926,-420.47,0.0001378,2]
[354111797,1740251441935,-734.87,0.0001378,2]
[354111798,1740251441944,-500.0,0.0001378,2]
[354111799,1740251441954,-500.0,0.0001378,2]
[354111800,1740251441963,-588.28103414,0.0001378,2]
[354111801,1740251441973,-500.0,0.0001378,2]
[354111802,1740251441982,-500.0,0.0001378,2]
[354111803,1740251441992,-500.0,0.0001378,2]
[354111804,1740251442002,-500.0,0.0001378,2]
[354111805,1740251442011,-500.0,0.0001378,2]
[354111806,1740251442020,-500.0,0.0001378,2]
[354111807,1740251442029,-500.0,0.0001378,2]
[354111808,1740251442038,-748.64,0.0001378,2]
[354111809,1740251442057,-500.0,0.0001378,2]
[354111810,1740251442068,-266.59,0.0001378,2]
[354111811,1740251442077,-500.0,0.0001378,2]
[354111812,1740251442087,-500.0,0.0001378,2]
[354111813,1740251442096,-500.0,0.0001378,2]
[354111814,1740251442106,-485.31,0.0001378,2]
[354111815,1740251442116,-3189.54,0.0001378,2]
[354111816,1740251442125,-1167.52,0.0001378,2]
[354111817,1740251442136,-9232.72,0.0001378,2]
[354111818,1740251442146,-500.0,0.0001378,2]
[354111819,1740251442156,-500.0,0.0001378,2]
[354111820,1740251442165,-358.34,0.0001378,2]
[354111821,1740251442175,-500.0,0.0001378,2]
[354111822,1740251442185,-1261.35,0.0001378,2]
[354111823,1740251442195,-879.83,0.0001378,2]
[354111824,1740251442204,-789.71,0.0001378,2]
[354111825,1740251442213,-500.0,0.00013863,2]
[354111826,1740251442223,-498.36,0.00013863,2]
[354111827,1740251442232,-500.0,0.00013863,2]
[354111828,1740251442242,-500.0,0.00013863,2]
[354111829,1740251442252,-500.0,0.00013863,2]
[354111830,1740251442261,-169.29,0.00013863,2]
[354111832,1740251442271,-223.61,0.00013863,2]
[354111833,1740251442280,-500.0,0.00013863,2]
[354111834,1740251442290,-500.0,0.00013863,2]
[354111835,1740251442300,-500.0,0.00013863,2]
[354111836,1740251442309,-500.0,0.00013863,2]
[354111837,1740251442319,-215.28,0.00013863,2]
[354111838,1740251442329,-858.89,0.00013863,2]
[354111839,1740251442339,-1566.2,0.00013863,2]
[354111840,1740251442349,-500.0,0.00013863,2]
[354111841,1740251442358,-352.55,0.00013863,2]
[354111842,1740251442367,-734.87,0.00013863,2]
[354111843,1740251442378,-500.0,0.00013863,2]
[354111844,1740251442387,-500.0,0.00013863,2]
[354111845,1740251442396,-500.0,0.00013863,2]
[354111846,1740251442406,-500.0,0.00013863,2]
[354111847,1740251442416,-500.0,0.00013863,2]
[354111848,1740251442425,-500.0,0.00013863,2]
[354111849,1740251442435,-183.81,0.00013863,2]
[354111850,1740251442445,-500.0,0.00013863,2]
[354111851,1740251442454,-748.64,0.00013863,2]
[354111852,1740251442464,-500.0,0.00013863,2]
[354111853,1740251442474,-500.0,0.00013863,2]
[354111854,1740251442484,-500.0,0.00013863,2]
[354111855,1740251442493,-500.0,0.00013863,2]
[354111856,1740251442503,-3189.54,0.00013863,2]
[354111857,1740251442512,-9232.72,0.00013863,2]
[354111858,1740251442521,-1167.52,0.00013863,2]
[354111859,1740251442531,-500.0,0.00013863,2]
[354111860,1740251442540,-500.0,0.00013863,2]
[354111861,1740251442549,-500.0,0.00013863,2]
[354111862,1740251442559,-1261.35,0.00013863,2]
[354111863,1740251442568,-879.83,0.00013863,2]
[354111865,1740251442578,-789.71,0.00013863,2]
[354111867,1740251442587,-500.0,0.00013914,2]
[354111869,1740251442596,-500.0,0.00013914,2]
[354111870,1740251442606,-500.0,0.00013944,2]
[354111871,1740251442615,-500.0,0.00013944,2]
[354111872,1740251442625,-500.0,0.00013945,2]
[354111873,1740251442634,-500.0,0.00013945,2]
[354111874,1740251442643,-500.0,0.00013945,2]
[354111876,1740251442653,-370.94,0.00013945,2]
[354111878,1740251442663,-500.0,0.00013945,2]
[354111880,1740251442673,-500.0,0.00013945,2]
[354111881,1740251442682,-500.0,0.00013945,2]
[354111883,1740251442692,-245.94,0.00013945,2]
[354111885,1740251442701,-858.89,0.00013945,2]
[354111887,1740251442710,-1566.2,0.00013945,2]
[354111889,1740251442720,-500.0,0.00013945,2]
[354111891,1740251442729,-734.87,0.00013945,2]
[354111892,1740251442738,-500.0,0.00013945,2]
[354111893,1740251442748,-500.0,0.00013945,2]
[354111894,1740251442759,-500.0,0.00013945,2]
[354111895,1740251442769,-500.0,0.00013945,2]
[354111896,1740251442778,-500.0,0.00013945,2]
[354111897,1740251442787,-500.0,0.00013945,2]
[354111898,1740251442799,-500.0,0.00013945,2]
[354111899,1740251442810,-748.64,0.00013945,2]
[354111900,1740251442819,-500.0,0.00013945,2]
[354111901,1740251442830,-500.0,0.00013945,2]
[354111902,1740251442839,-500.0,0.00013945,2]
[354111903,1740251442848,-3189.54,0.00013945,2]
[354111904,1740251442857,-9232.72,0.00013945,2]
[354111905,1740251442866,-1167.52,0.00013945,2]
[354111907,1740251442877,-500.0,0.00013945,2]
[354111909,1740251442887,-500.0,0.00013945,2]
[354111910,1740251442895,-534.7,0.00013945,2]
[354111911,1740251442905,-1261.35,0.00013945,2]
[354111912,1740251442914,-879.83,0.00013945,2]
[354111913,1740251442923,-789.71,0.00013945,2]
[354111915,1740251442932,-500.0,0.00014026,2]
[354111916,1740251442941,-500.0,0.00014026,2]
[354111917,1740251442950,-75.65559035,0.00014027,2]
[354111918,1740251442966,-424.34440965,0.00014027,2]
[354111919,1740251442975,-500.0,0.00014027,2]
[354111921,1740251442985,-500.0,0.00014027,2]
[354111923,1740251442995,-500.0,0.00014027,2]
[354111924,1740251443003,-500.0,0.00014027,2]
[354111926,1740251443012,-500.0,0.00014027,2]
[354111928,1740251443021,-858.89,0.00014027,2]
[354111930,1740251443031,-1566.2,0.00014027,2]
[354111931,1740251443040,-500.0,0.00014027,2]
[354111933,1740251443050,-734.87,0.00014027,2]
[354111935,1740251443060,-500.0,0.00014027,2]
[354111938,1740251443070,-500.0,0.00014027,2]
[354111939,1740251443079,-270.17,0.00014027,2]
[354111942,1740251443088,-500.0,0.00014027,2]
[354111943,1740251443098,-500.0,0.00014027,2]
[354111945,1740251443107,-500.0,0.00014027,2]
[354111947,1740251443116,-500.0,0.00014027,2]
[354111949,1740251443125,-748.64,0.00014027,2]
[354111951,1740251443135,-500.0,0.00014027,2]
[354111953,1740251443144,-500.0,0.00014027,2]
[354111955,1740251443153,-500.0,0.00014027,2]
[354111957,1740251443163,-3189.54,0.00014027,2]
[354111959,1740251443172,-9232.72,0.00014027,2]
[354111961,1740251443182,-1167.52,0.00014027,2]
[354111963,1740251443192,-500.0,0.00014027,2]
[354111965,1740251443201,-500.0,0.00014027,2]
[354111968,1740251443211,-1261.35,0.00014027,2]
[354111970,1740251443220,-879.83,0.00014027,2]
[354111972,1740251443229,-789.71,0.00014027,2]
[354111974,1740251443239,-500.0,0.00014108,2]
[354111976,1740251443248,-500.0,0.00014108,2]
[354111978,1740251443258,-500.0,0.00014109,2]
[354111979,1740251443267,-567.07,0.00014109,2]
[354111981,1740251443276,-500.0,0.00014109,2]
[354111984,1740251443285,-500.0,0.00014109,2]
[354111985,1740251443295,-500.0,0.00014109,2]
[354111987,1740251443304,-500.0,0.00014109,2]
[354111990,1740251443313,-858.89,0.00014109,2]
[354111992,1740251443323,-1566.2,0.00014109,2]
[354111994,1740251443332,-500.0,0.00014109,2]
[354111995,1740251443340,-734.87,0.00014109,2]
[354111997,1740251443350,-500.0,0.00014109,2]
[354111999,1740251443359,-500.0,0.00014109,2]
[354112001,1740251443369,-500.0,0.00014109,2]
[354112004,1740251443379,-500.0,0.00014109,2]
[354112005,1740251443388,-500.0,0.00014109,2]
[354112007,1740251443398,-500.0,0.00014109,2]
[354112010,1740251443410,-748.64,0.00014109,2]
[354112012,1740251443420,-500.0,0.00014109,2]
[354112014,1740251443430,-500.0,0.00014109,2]
[354112016,1740251443439,-500.0,0.00014109,2]
[354112018,1740251443448,-3189.54,0.00014109,2]
[354112020,1740251443457,-9232.72,0.00014109,2]
[354112021,1740251443467,-1167.52,0.00014109,2]
[354112022,1740251443476,-500.0,0.00014109,2]
[354112023,1740251443486,-500.0,0.00014109,2]
[354112024,1740251443495,-1261.35,0.00014109,2]
[354112025,1740251443505,-879.83,0.00014109,2]
[354112026,1740251443515,-789.71,0.00014109,2]
[354112027,1740251443524,-500.0,0.00014191,2]
[354112028,1740251443534,-500.0,0.00014191,2]
[354112029,1740251443543,-500.0,0.00014191,2]
[354112030,1740251443553,-500.0,0.00014191,2]
[354112031,1740251443563,-500.0,0.00014191,2]
[354112032,1740251443572,-858.89,0.00014191,2]
[354112033,1740251443582,-1566.2,0.00014191,2]
[354112034,1740251443591,-548.83890513,0.00014191,2]
[354112035,1740251443599,-734.87,0.00014191,2]
[354112036,1740251443608,-500.0,0.00014191,2]
[354112037,1740251443618,-500.0,0.00014191,2]
[354112038,1740251443627,-500.0,0.00014191,2]
[354112039,1740251443637,-500.0,0.00014191,2]
[354112040,1740251443646,-500.0,0.00014191,2]
[354112041,1740251443655,-500.0,0.00014191,2]
[354112043,1740251443664,-748.64,0.00014191,2]
[354112045,1740251443674,-207.19,0.00014191,2]
[354112047,1740251443683,-500.0,0.00014191,2]
[354112049,1740251443692,-500.0,0.00014191,2]
[354112051,1740251443701,-3189.54,0.00014191,2]
[354112053,1740251443711,-9232.72,0.00014191,2]
[354112055,1740251443720,-1167.52,0.00014191,2]
[354112057,1740251443729,-500.0,0.00014191,2]
[354112059,1740251443738,-500.0,0.00014191,2]
[354112061,1740251443752,-1261.35,0.00014191,2]
[354112063,1740251443762,-879.83,0.00014191,2]
[354112065,1740251443771,-789.71,0.00014191,2]
[354112067,1740251443781,-573.34456044,0.00014222,2]
[354112069,1740251443791,-500.0,0.00014272,2]
[354112071,1740251443800,-500.0,0.00014272,2]
[354112073,1740251443811,-590.94,0.00014273,2]
[354112075,1740251443820,-647.54148763,0.00014273,2]
[354112077,1740251443830,-500.0,0.00014273,2]
[354112079,1740251443840,-500.0,0.00014273,2]
[354112081,1740251443849,-500.0,0.00014273,2]
[354112083,1740251443858,-858.89,0.00014273,2]
[354112085,1740251443867,-1566.2,0.00014273,2]
[354112087,1740251443876,-734.87,0.00014273,2]
[354112100,1740251443983,-500.0,0.00014273,2]
[354112102,1740251443992,-500.0,0.00014273,2]
[354112104,1740251444001,-500.0,0.00014273,2]
[354112106,1740251444010,-500.0,0.00014273,2]
[354112108,1740251444019,-500.0,0.00014273,2]
[354112110,1740251444029,-500.0,0.00014273,2]
[354112112,1740251444037,-748.64,0.00014273,2]
[354112114,1740251444047,-500.0,0.00014273,2]
[354112116,1740251444056,-500.0,0.00014273,2]
[354112117,1740251444065,-3189.54,0.00014273,2]
[354112120,1740251444075,-9232.72,0.00014273,2]
[354112121,1740251444084,-1167.52,0.00014273,2]
[354112123,1740251444095,-500.0,0.00014273,2]
[354112125,1740251444105,-500.0,0.00014273,2]
[354112127,1740251444115,-1261.35,0.00014273,2]
[354112129,1740251444126,-879.83,0.00014273,2]
[354112131,1740251444136,-789.71,0.00014273,2]
[354112133,1740251444146,-500.0,0.00014354,2]
[354112135,1740251444155,-500.0,0.00014354,2]
[354112137,1740251444164,-500.0,0.00014356,2]
[354112139,1740251444173,-500.0,0.00014356,2]
[354112141,1740251444183,-500.0,0.00014356,2]
[354112143,1740251444192,-858.89,0.00014356,2]
[354112145,1740251444202,-1566.2,0.00014356,2]
[354112147,1740251444211,-734.87,0.00014356,2]
[354112149,1740251444220,-500.0,0.00014356,2]
[354112151,1740251444229,-500.0,0.00014356,2]
[354112153,1740251444239,-500.0,0.00014356,2]
[354112155,1740251444247,-500.0,0.00014356,2]
[354112157,1740251444257,-500.0,0.00014356,2]
[354112159,1740251444266,-500.0,0.00014356,2]
[354112161,1740251444276,-748.64,0.00014356,2]
[354112163,1740251444285,-500.0,0.00014356,2]
[354112165,1740251444295,-500.0,0.00014356,2]
[354112167,1740251444303,-3189.54,0.00014356,2]
[354112169,1740251444312,-9232.72,0.00014356,2]
[354112171,1740251444322,-1167.52,0.00014356,2]
[354112173,1740251444331,-500.0,0.00014356,2]
[354112175,1740251444340,-500.0,0.00014356,2]
[354112177,1740251444350,-1261.35,0.00014356,2]
[354112179,1740251444359,-879.83,0.00014356,2]
[354112181,1740251444369,-500.0,0.00014437,2]
[354112183,1740251444380,-500.0,0.00014437,2]
[354112185,1740251444389,-500.0,0.00014438,2]
[354112187,1740251444399,-500.0,0.00014438,2]
[354112189,1740251444408,-500.0,0.00014438,2]
[354112191,1740251444416,-858.89,0.00014438,2]
[354112193,1740251444426,-1566.2,0.00014438,2]
[354112195,1740251444435,-734.87,0.00014438,2]
[354112197,1740251444444,-500.0,0.00014438,2]
[354112199,1740251444454,-500.0,0.00014438,2]
[354112201,1740251444463,-500.0,0.00014438,2]
[354112203,1740251444472,-500.0,0.00014438,2]
[354112205,1740251444481,-500.0,0.00014438,2]
[354112207,1740251444491,-500.0,0.00014438,2]
[354112209,1740251444500,-748.64,0.00014438,2]
[354112211,1740251444510,-500.0,0.00014438,2]
[354112213,1740251444519,-500.0,0.00014438,2]
[354112215,1740251444528,-3189.54,0.00014438,2]
[354112217,1740251444537,-9232.72,0.00014438,2]
[354112219,1740251444545,-1167.52,0.00014438,2]
[354112221,1740251444555,-500.0,0.00014438,2]
[354112223,1740251444563,-500.0,0.00014438,2]